[Event "EIRCC 2019"]
[Site "Tallinn"]
[Date "2019.12.06"]
[Round "10.9"]
[White "Usmanov, Vasily"]
[Black "Potapov, Pavel"]
[Result "1-0"]
[ECO "E00"]
[WhiteElo "2436"]
[BlackElo "2482"]
[Annotator "ChessBase"]
[PlyCount "91"]
[EventDate "2019.12.05"]
[EventType "swiss"]
[EventCountry "EST"]
[SourceTitle "playchess.com"]
[Source "ChessBase"]
[SourceQuality "1"]
[TimeControl "900+10"]

1. d4 {[%emt 0:00:00]} e6 {[%emt 0:00:00]} 2. c4 {[%emt 0:00:02]} Nf6 {[%emt 0:00:00]} 3. a3 {[%emt 0:00:04]} b6 {[%emt 0:00:09]} 4. Nc3 {[%emt 0:00:08]} Bb7 {[%emt 0:00:03]} 5. d5 {[%emt 0:00:56]} g6 {[%emt 0:03:45]} 6. e4 {[%emt 0:00:03]} exd5 {[%emt 0:00:46]} 7. cxd5 {[%emt 0:02:08]} Bg7 {[%emt 0:00:04]} 8. Bd3 {[%emt 0:01:40]} O-O {[%emt 0:00:03]} 9. Nf3 {[%emt 0:00:02]} c6 {[%emt 0:01:50]} 10. O-O {[%emt 0:00:04]} cxd5 {[%emt 0:00:09]} 11. exd5 {[%emt 0:00:02]} d6 {[%emt 0:01:32]} 12. Bg5 {[%emt 0:02:19]} h6 {[%emt 0:00:35]} 13. Bf4 {[%emt 0:01:02]} Na6 {[%emt 0:00:57]} 14. Qd2 {[%emt 0:00:15]} Kh7 {[%emt 0:01:47]} 15. Rad1 {[%emt 0:02:33]} Nc7 {[%emt 0:00:23]} 16. Bc4 {[%emt 0:00:24]} Qd7 {[%emt 0:00:13]} 17. Qd3 {[%emt 0:00:59]} Rac8 {[%emt 0:01:34]} 18. h3 {[%emt 0:00:26]} Rfd8 {[%emt 0:02:04]} 19. Rd2 {[%emt 0:00:07]} a6 {[%emt 0:00:57]} 20. Rfd1 {[%emt 0:00:51]} b5 {[%emt 0:00:07]} 21. Ba2 {[%emt 0:00:12]} Re8 {[%emt 0:00:02]} 22. Ne1 {[%emt 0:01:22]} Re7 {[%emt 0:00:14]} 23. Nc2 {[%emt 0:00:04]} Rce8 {[%emt 0:00:06]} 24. Nb4 {[%emt 0:00:20]} Ne4 {[%emt 0:00:10]} 25. Nxe4 {[%emt 0:00:09]} Rxe4 {[%emt 0:00:02]} 26. Qg3 {[%emt 0:00:52]} Be5 {[%emt 0:00:18]} 27. Bxe5 {[%emt 0:00:07]} R4xe5 {[%emt 0:00:05]} 28. Kh2 {[%emt 0:00:14]} Rg5 {[%emt 0:01:08]} 29. Qc3 {[%emt 0:00:15]} a5 {[%emt 0:00:25]} 30. Nc6 {[%emt 0:00:12]} a4 {[%emt 0:00:11]} 31. f4 {[%emt 0:00:10]} Rf5 {[%emt 0:00:06]} 32. Rd4 {[%emt 0:00:22]} Rc8 {[%emt 0:00:17]} 33. g4 {[%emt 0:01:11]} Nxd5 {[%emt 0:00:08]} 34. Bxd5 {[%emt 0:00:08]} Rxd5 {[%emt 0:00:03]} 35. Rxd5 {[%emt 0:00:02]} Rxc6 {[%emt 0:00:02]} 36. Qf6 {[%emt 0:00:29]} Rc2+ {[%emt 0:00:23]} 37. R5d2 {[%emt 0:00:02]} Qc7 {[%emt 0:00:02]} 38. Kg3 {[%emt 0:00:19]} Rxd2 {[%emt 0:00:25]} 39. Rxd2 {[%emt 0:00:02]} Qc6 {[%emt 0:00:09]} 40. Qxf7+ {[%emt 0:00:02]} Kh8 {[%emt 0:00:01]} 41. Qf8+ {[%emt 0:00:02]} Kh7 {[%emt 0:00:01]} 42. Qe7+ {[%emt 0:00:02]} Kh8 {[%emt 0:00:03]} 43. Qf6+ {[%emt 0:00:05]} Kh7 {[%emt 0:00:03]} 44. Qe7+ {[%emt 0:00:14]} Kg8 {[%emt 0:00:01]} 45. Re2 {[%emt 0:00:23]} Qf3+ {[%emt 0:00:20]} 46. Kh4 {[%emt 0:00:02]} 1-0

[Event "EIRCC 2019"]
[Site "Tallinn"]
[Date "2019.12.06"]
[Round "10.11"]
[White "Demidov, Mikhail"]
[Black "Sipila, Vilka"]
[Result "0-1"]
[ECO "A06"]
[WhiteElo "2552"]
[BlackElo "2383"]
[Annotator "ChessBase"]
[PlyCount "82"]
[EventDate "2019.12.05"]
[EventType "swiss"]
[EventCountry "EST"]
[SourceTitle "playchess.com"]
[Source "ChessBase"]
[SourceQuality "1"]
[TimeControl "900+10"]

1. Nf3 {[%emt 0:00:00]} d5 {[%emt 0:00:00]} 2. g3 {[%emt 0:00:00]} Nf6 {[%emt 0:00:00]} 3. Bg2 {[%emt 0:00:00]} e6 {[%emt 0:00:00]} 4. O-O {[%emt 0:00:14]} Be7 {[%emt 0:00:00]} 5. c4 {[%emt 0:00:06]} O-O {[%emt 0:00:00]} 6. d3 {[%emt 0:00:17]} c5 {[%emt 0:00:06]} 7. cxd5 {[%emt 0:00:12]} exd5 {[%emt 0:00:02]} 8. d4 {[%emt 0:00:04]} Nc6 {[%emt 0:00:09]} 9. Nc3 {[%emt 0:00:05]} c4 {[%emt 0:00:21]} 10. Ne5 {[%emt 0:00:02]} Be6 {[%emt 0:00:03]} 11. b3 {[%emt 0:00:15]} Qa5 {[%emt 0:00:39]} 12. Bd2 {[%emt 0:00:27]} Bb4 {[%emt 0:00:05]} 13. Nxc6 {[%emt 0:00:04]} bxc6 {[%emt 0:00:01]} 14. Qc2 {[%emt 0:00:02]} Bf5 {[%emt 0:00:14]} 15. Qxf5 {[%emt 0:00:44]} Bxc3 {[%emt 0:00:01]} 16. Bxc3 {[%emt 0:00:01]} Qxc3 {[%emt 0:00:01]} 17. bxc4 {[%emt 0:00:02]} Qxd4 {[%emt 0:00:10]} 18. cxd5 {[%emt 0:00:01]} cxd5 {[%emt 0:00:58]} 19. Rac1 {[%emt 0:00:04]} g6 {[%emt 0:00:33]} 20. Qc2 {[%emt 0:00:05]} Rab8 {[%emt 0:00:08]} 21. e3 {[%emt 0:00:25]} Qe5 {[%emt 0:01:03]} 22. Qc5 {[%emt 0:00:21]} Rb2 {[%emt 0:00:07]} 23. Qxa7 {[%emt 0:00:21]} Rd2 {[%emt 0:02:13]} 24. Rcd1 {[%emt 0:00:39]} Qb2 {[%emt 0:01:57]} 25. Rxd2 {[%emt 0:00:23]} Qxd2 {[%emt 0:00:02]} 26. a4 {[%emt 0:00:16]} Kg7 {[%emt 0:00:35]} 27. a5 {[%emt 0:00:16]} Rc8 {[%emt 0:00:03]} 28. Bh3 {[%emt 0:02:38]} Rc6 {[%emt 0:04:20]} 29. Bg2 {[%emt 0:02:18]} Rc2 {[%emt 0:00:31]} 30. a6 {[%emt 0:01:48]} Ra2 {[%emt 0:00:31]} 31. Qb7 {[%emt 0:03:33]} Ra5 {[%emt 0:02:47]} 32. Bh3 {[%emt 0:01:52]} Ne4 {[%emt 0:00:55]} 33. Be6 {[%emt 0:00:18]} Ng5 {[%emt 0:00:02]} 34. Bc8 {[%emt 0:00:50]} Ra2 {[%emt 0:00:51]} 35. h4 {[%emt 0:01:20]} Nf3+ {[%emt 0:00:11]} 36. Kg2 {[%emt 0:00:01]} Ne1+ {[%emt 0:00:09]} 37. Kh1 {[%emt 0:00:22]} Nd3 {[%emt 0:00:08]} 38. Kg2 {[%emt 0:00:42]} Nxf2 {[%emt 0:00:07]} 39. Be6 {[%emt 0:00:09]} Ne4+ {[%emt 0:00:10]} 40. Kh3 {[%emt 0:00:04]} Qg2+ {[%emt 0:00:02]} 41. Kg4 {[%emt 0:00:01]} Qxg3# {[%emt 0:00:02]} 0-1

[Event "EIRCC 2019"]
[Site "Tallinn"]
[Date "2019.12.06"]
[Round "10.15"]
[White "Aleksandrov, Aleksej"]
[Black "Duzhakov, Ilya"]
[Result "1-0"]
[ECO "A28"]
[WhiteElo "2592"]
[BlackElo "2399"]
[Annotator "ChessBase"]
[PlyCount "63"]
[EventDate "2019.12.05"]
[EventType "swiss"]
[EventCountry "EST"]
[SourceTitle "playchess.com"]
[Source "ChessBase"]
[SourceQuality "1"]
[TimeControl "900+10"]

1. c4 {[%emt 0:00:00]} e5 {[%emt 0:00:06]} 2. Nc3 {[%emt 0:00:00]} Nf6 {[%emt 0:00:04]} 3. Nf3 {[%emt 0:00:00]} Nc6 {[%emt 0:00:04]} 4. e4 {[%emt 0:00:00]} Bb4 {[%emt 0:01:08]} 5. d3 {[%emt 0:00:00]} Bxc3+ {[%emt 0:01:10]} 6. bxc3 {[%emt 0:00:00]} h6 {[%emt 0:00:03]} 7. g3 {[%emt 0:00:22]} O-O {[%emt 0:00:11]} 8. Bg2 {[%emt 0:00:02]} d6 {[%emt 0:00:09]} 9. O-O {[%emt 0:00:06]} Ne7 {[%emt 0:00:47]} 10. Nh4 {[%emt 0:00:17]} g5 {[%emt 0:02:41]} 11. Nf5 {[%emt 0:00:29]} Nxf5 {[%emt 0:01:02]} 12. exf5 {[%emt 0:00:02]} Bxf5 {[%emt 0:00:02]} 13. h4 {[%emt 0:00:04]} Nh7 {[%emt 0:00:41]} 14. Bxb7 {[%emt 0:00:06]} Rb8 {[%emt 0:00:06]} 15. Bg2 {[%emt 0:00:02]} Qf6 {[%emt 0:01:18]} 16. hxg5 {[%emt 0:01:58]} hxg5 {[%emt 0:00:06]} 17. Be3 {[%emt 0:00:41]} Qg6 {[%emt 0:00:32]} 18. d4 {[%emt 0:00:26]} Bd3 {[%emt 0:00:29]} 19. Re1 {[%emt 0:00:03]} Bxc4 {[%emt 0:00:02]} 20. dxe5 {[%emt 0:01:13]} dxe5 {[%emt 0:00:10]} 21. Qa4 {[%emt 0:00:06]} Qe6 {[%emt 0:01:54]} 22. Qxa7 {[%emt 0:00:04]} c6 {[%emt 0:00:29]} 23. a4 {[%emt 0:00:15]} Bd5 {[%emt 0:00:10]} 24. a5 {[%emt 0:00:12]} f5 {[%emt 0:02:42]} 25. Bd4 {[%emt 0:00:14]} Ra8 {[%emt 0:00:39]} 26. Qc7 {[%emt 0:00:04]} Bxg2 {[%emt 0:00:03]} 27. Rxe5 {[%emt 0:00:08]} Qg6 {[%emt 0:00:47]} 28. Re7 {[%emt 0:00:30]} Nf6 {[%emt 0:00:14]} 29. Kxg2 {[%emt 0:00:01]} f4 {[%emt 0:00:01]} 30. Qxc6 {[%emt 0:01:05]} fxg3 {[%emt 0:00:02]} 31. Qe6+ {[%emt 0:00:04]} Rf7 {[%emt 0:00:05]} 32. Rxf7 {[%emt 0:00:25]} 1-0

[Event "EIRCC 2019"]
[Site "Tallinn"]
[Date "2019.12.06"]
[Round "10.17"]
[White "Stupak, Kirill"]
[Black "Shubin, Kirill"]
[Result "1/2-1/2"]
[ECO "A25"]
[WhiteElo "2529"]
[BlackElo "2430"]
[Annotator "ChessBase"]
[PlyCount "86"]
[EventDate "2019.12.05"]
[EventType "swiss"]
[EventCountry "EST"]
[SourceTitle "playchess.com"]
[Source "ChessBase"]
[SourceQuality "1"]
[TimeControl "900+10"]

1. c4 {[%emt 0:00:00]} e5 {[%emt 0:00:00]} 2. g3 {[%emt 0:00:00]} Nc6 {[%emt 0:00:00]} 3. Bg2 {[%emt 0:00:00]} g6 {[%emt 0:00:00]} 4. Nc3 {[%emt 0:00:23]} Bg7 {[%emt 0:00:00]} 5. h4 {[%emt 0:00:06]} h5 {[%emt 0:00:45]} 6. d3 {[%emt 0:00:10]} Nge7 {[%emt 0:00:04]} 7. Nf3 {[%emt 0:00:24]} d6 {[%emt 0:00:18]} 8. Rb1 {[%emt 0:00:49]} a5 {[%emt 0:00:45]} 9. O-O {[%emt 0:00:19]} O-O {[%emt 0:00:10]} 10. a3 {[%emt 0:00:28]} Bg4 {[%emt 0:00:27]} 11. b4 {[%emt 0:00:34]} axb4 {[%emt 0:00:04]} 12. axb4 {[%emt 0:00:01]} Qd7 {[%emt 0:00:20]} 13. b5 {[%emt 0:00:28]} Nd8 {[%emt 0:00:04]} 14. Ne4 {[%emt 0:00:43]} Bh3 {[%emt 0:00:44]} 15. Bxh3 {[%emt 0:02:19]} Qxh3 {[%emt 0:00:02]} 16. b6 {[%emt 0:00:01]} Qd7 {[%emt 0:01:51]} 17. bxc7 {[%emt 0:01:20]} Qxc7 {[%emt 0:00:01]} 18. Qb3 {[%emt 0:00:11]} Ra6 {[%emt 0:01:58]} 19. Be3 {[%emt 0:02:19]} Qc6 {[%emt 0:01:03]} 20. Qb5 {[%emt 0:01:16]} Nf5 {[%emt 0:00:04]} 21. Bg5 {[%emt 0:01:13]} f6 {[%emt 0:01:10]} 22. Bd2 {[%emt 0:00:01]} Rf7 {[%emt 0:01:21]} 23. Nc3 {[%emt 0:00:27]} Ne6 {[%emt 0:00:18]} 24. Qb2 {[%emt 0:01:30]} Nfd4 {[%emt 0:01:14]} 25. Nxd4 {[%emt 0:00:02]} Nxd4 {[%emt 0:00:01]} 26. Be3 {[%emt 0:00:01]} Ne6 {[%emt 0:00:33]} 27. Nd5 {[%emt 0:00:01]} Ra8 {[%emt 0:00:32]} 28. Qd2 {[%emt 0:01:01]} f5 {[%emt 0:00:29]} 29. Rb6 {[%emt 0:00:48]} Qd7 {[%emt 0:00:02]} 30. Qb4 {[%emt 0:00:01]} f4 {[%emt 0:00:23]} 31. Qxd6 {[%emt 0:00:44]} Nf8 {[%emt 0:00:59]} 32. Qxd7 {[%emt 0:02:24]} Nxd7 {[%emt 0:00:01]} 33. Rxg6 {[%emt 0:00:13]} fxe3 {[%emt 0:00:06]} 34. fxe3 {[%emt 0:00:09]} Ra6 {[%emt 0:00:36]} 35. Rg5 {[%emt 0:00:07]} Rh6 {[%emt 0:00:46]} 36. e4 {[%emt 0:00:07]} Nc5 {[%emt 0:00:23]} 37. Rff5 {[%emt 0:00:08]} Ne6 {[%emt 0:00:18]} 38. Rxf7 {[%emt 0:00:06]} Kxf7 {[%emt 0:00:01]} 39. Rf5+ {[%emt 0:00:02]} Ke8 {[%emt 0:00:01]} 40. Kf2 {[%emt 0:00:29]} Rh8 {[%emt 0:00:07]} 41. e3 {[%emt 0:00:07]} Rf8 {[%emt 0:00:27]} 42. Ke2 {[%emt 0:00:01]} Rxf5 {[%emt 0:00:08]} 43. exf5 {[%emt 0:00:01]} Nc5 {[%emt 0:00:02]} 1/2-1/2

[Event "EIRCC 2019"]
[Site "Tallinn"]
[Date "2019.12.06"]
[Round "10.18"]
[White "Ruck, Robert"]
[Black "Shvyrjov, Igor"]
[Result "1-0"]
[ECO "A04"]
[WhiteElo "2530"]
[BlackElo "2382"]
[Annotator "ChessBase"]
[PlyCount "79"]
[EventDate "2019.12.05"]
[EventType "swiss"]
[EventCountry "EST"]
[SourceTitle "playchess.com"]
[Source "ChessBase"]
[SourceQuality "1"]
[TimeControl "900+10"]

1. Nf3 {[%emt 0:00:00]} g6 {[%emt 0:00:00]} 2. e4 {[%emt 0:00:00]} Bg7 {[%emt 0:00:00]} 3. d4 {[%emt 0:00:00]} d6 {[%emt 0:00:00]} 4. Bc4 {[%emt 0:00:00]} c6 {[%emt 0:00:08]} 5. Bb3 {[%emt 0:00:01]} Nf6 {[%emt 0:00:04]} 6. Nbd2 {[%emt 0:00:01]} O-O {[%emt 0:00:09]} 7. O-O {[%emt 0:00:02]} a5 {[%emt 0:00:04]} 8. a4 {[%emt 0:00:11]} Bg4 {[%emt 0:00:29]} 9. Re1 {[%emt 0:00:06]} e5 {[%emt 0:00:08]} 10. dxe5 {[%emt 0:00:13]} dxe5 {[%emt 0:00:02]} 11. h3 {[%emt 0:00:10]} Bxf3 {[%emt 0:00:01]} 12. Qxf3 {[%emt 0:00:03]} Nbd7 {[%emt 0:00:13]} 13. c3 {[%emt 0:00:11]} Nc5 {[%emt 0:00:13]} 14. Bc2 {[%emt 0:00:01]} Qe7 {[%emt 0:00:43]} 15. Nc4 {[%emt 0:00:20]} Qe6 {[%emt 0:02:32]} 16. Qe2 {[%emt 0:00:30]} Nh5 {[%emt 0:00:35]} 17. Be3 {[%emt 0:00:37]} Qe7 {[%emt 0:01:08]} 18. Nxa5 {[%emt 0:05:39]} Rxa5 {[%emt 0:06:56]} 19. b4 {[%emt 0:00:02]} Nxe4 {[%emt 0:00:02]} 20. Bxe4 {[%emt 0:01:05]} Raa8 {[%emt 0:00:03]} 21. Bc5 {[%emt 0:00:54]} Qg5 {[%emt 0:00:01]} 22. Bxf8 {[%emt 0:00:52]} Rxf8 {[%emt 0:00:01]} 23. Qe3 {[%emt 0:00:11]} Nf4 {[%emt 0:01:23]} 24. Qg3 {[%emt 0:03:52]} Qd8 {[%emt 0:00:32]} 25. a5 {[%emt 0:00:20]} f5 {[%emt 0:00:05]} 26. Bc2 {[%emt 0:00:01]} Qd2 {[%emt 0:00:23]} 27. Bb3+ {[%emt 0:00:12]} Kh8 {[%emt 0:00:01]} 28. Qe3 {[%emt 0:00:11]} Qd8 {[%emt 0:00:40]} 29. a6 {[%emt 0:00:09]} bxa6 {[%emt 0:00:02]} 30. Rxa6 {[%emt 0:00:02]} Qg5 {[%emt 0:01:29]} 31. Qg3 {[%emt 0:00:14]} Qd8 {[%emt 0:00:49]} 32. Rxc6 {[%emt 0:00:33]} Nd3 {[%emt 0:00:25]} 33. Rd1 {[%emt 0:01:24]} e4 {[%emt 0:00:01]} 34. Bc4 {[%emt 0:00:22]} f4 {[%emt 0:00:03]} 35. Qg4 {[%emt 0:00:01]} Qa8 {[%emt 0:00:24]} 36. Rc7 {[%emt 0:00:11]} Qa4 {[%emt 0:00:41]} 37. Bxd3 {[%emt 0:00:34]} exd3 {[%emt 0:00:09]} 38. Rxd3 {[%emt 0:00:12]} f3 {[%emt 0:00:06]} 39. Qd7 {[%emt 0:00:11]} Qa1+ {[%emt 0:00:17]} 40. Rd1 {[%emt 0:00:02]} 1-0

[Event "EIRCC 2019"]
[Site "Tallinn"]
[Date "2019.12.06"]
[Round "10.19"]
[White "Dordzhieva, Dinara"]
[Black "Stocek, Jiri"]
[Result "1-0"]
[ECO "A05"]
[WhiteElo "2314"]
[BlackElo "2575"]
[Annotator "ChessBase"]
[PlyCount "53"]
[EventDate "2019.12.05"]
[EventType "swiss"]
[EventCountry "EST"]
[SourceTitle "playchess.com"]
[Source "ChessBase"]
[SourceQuality "1"]
[TimeControl "900+10"]

1. Nf3 {[%emt 0:00:00]} Nf6 {[%emt 0:00:00]} 2. c4 {[%emt 0:00:00]} e6 {[%emt 0:00:04]} 3. g3 {[%emt 0:00:00]} b6 {[%emt 0:00:04]} 4. Bg2 {[%emt 0:00:00]} Bb7 {[%emt 0:00:01]} 5. O-O {[%emt 0:00:07]} a5 {[%emt 0:00:23]} 6. d4 {[%emt 0:00:23]} Na6 {[%emt 0:00:02]} 7. d5 {[%emt 0:01:15]} exd5 {[%emt 0:01:00]} 8. Nh4 {[%emt 0:00:01]} g6 {[%emt 0:00:22]} 9. cxd5 {[%emt 0:00:08]} Bg7 {[%emt 0:00:19]} 10. Nc3 {[%emt 0:00:26]} O-O {[%emt 0:00:07]} 11. e4 {[%emt 0:00:04]} Re8 {[%emt 0:00:45]} 12. Re1 {[%emt 0:00:19]} d6 {[%emt 0:00:13]} 13. Be3 {[%emt 0:01:41]} Nc5 {[%emt 0:00:30]} 14. Bd4 {[%emt 0:00:01]} Ba6 {[%emt 0:01:08]} 15. Qd2 {[%emt 0:00:47]} Qd7 {[%emt 0:00:38]} 16. Rad1 {[%emt 0:01:35]} Rad8 {[%emt 0:00:24]} 17. Qc2 {[%emt 0:00:34]} Bb7 {[%emt 0:00:36]} 18. h3 {[%emt 0:01:12]} Qc8 {[%emt 0:00:43]} 19. a3 {[%emt 0:01:11]} c6 {[%emt 0:01:53]} 20. b4 {[%emt 0:01:11]} Ncd7 {[%emt 0:00:25]} 21. dxc6 {[%emt 0:01:53]} Bxc6 {[%emt 0:00:07]} 22. Qb3 {[%emt 0:00:34]} Qa8 {[%emt 0:00:41]} 23. Nf3 {[%emt 0:01:20]} Nxe4 {[%emt 0:02:41]} 24. Bxg7 {[%emt 0:00:43]} Kxg7 {[%emt 0:00:01]} 25. Nxe4 {[%emt 0:00:02]} Bxe4 {[%emt 0:01:33]} 26. Ng5 {[%emt 0:00:15]} d5 {[%emt 0:02:15]} 27. Bxe4 {[%emt 0:00:15]} 1-0

[Event "EIRCC 2019"]
[Site "Tallinn"]
[Date "2019.12.06"]
[Round "10.20"]
[White "Belyakov, Bogdan"]
[Black "Kukk, Sander"]
[Result "1-0"]
[ECO "B09"]
[WhiteElo "2481"]
[BlackElo "2194"]
[Annotator "ChessBase"]
[PlyCount "57"]
[EventDate "2019.12.05"]
[EventType "swiss"]
[EventCountry "EST"]
[SourceTitle "playchess.com"]
[Source "ChessBase"]
[SourceQuality "1"]
[TimeControl "900+10"]

1. e4 {[%emt 0:00:00]} g6 {[%emt 0:00:00]} 2. d4 {[%emt 0:00:00]} Bg7 {[%emt 0:00:00]} 3. Nc3 {[%emt 0:00:00]} d6 {[%emt 0:00:00]} 4. f4 {[%emt 0:00:02]} Nf6 {[%emt 0:00:09]} 5. Nf3 {[%emt 0:00:12]} O-O {[%emt 0:00:12]} 6. Bd3 {[%emt 0:00:13]} Na6 {[%emt 0:00:46]} 7. O-O {[%emt 0:03:04]} c5 {[%emt 0:00:14]} 8. d5 {[%emt 0:01:36]} Nc7 {[%emt 0:00:26]} 9. a4 {[%emt 0:00:32]} Rb8 {[%emt 0:00:46]} 10. Qe1 {[%emt 0:00:08]} a6 {[%emt 0:00:29]} 11. a5 {[%emt 0:00:22]} b5 {[%emt 0:00:40]} 12. axb6 {[%emt 0:00:03]} Rxb6 {[%emt 0:00:01]} 13. Qh4 {[%emt 0:00:13]} Nb5 {[%emt 0:02:28]} 14. Nxb5 {[%emt 0:01:57]} axb5 {[%emt 0:00:02]} 15. c3 {[%emt 0:00:01]} c4 {[%emt 0:01:28]} 16. Bc2 {[%emt 0:00:03]} b4 {[%emt 0:00:02]} 17. f5 {[%emt 0:00:43]} bxc3 {[%emt 0:01:19]} 18. bxc3 {[%emt 0:00:04]} Qc7 {[%emt 0:00:34]} 19. Ng5 {[%emt 0:02:35]} Re8 {[%emt 0:02:44]} 20. fxg6 {[%emt 0:00:46]} hxg6 {[%emt 0:00:01]} 21. Be3 {[%emt 0:00:48]} Rb2 {[%emt 0:00:07]} 22. Ba4 {[%emt 0:00:02]} Bd7 {[%emt 0:00:21]} 23. Bd4 {[%emt 0:01:05]} Bxa4 {[%emt 0:00:39]} 24. Rxa4 {[%emt 0:00:04]} Reb8 {[%emt 0:00:20]} 25. Ra7 {[%emt 0:00:49]} R2b7 {[%emt 0:00:42]} 26. Rxb7 {[%emt 0:00:12]} Rxb7 {[%emt 0:00:21]} 27. h3 {[%emt 0:00:13]} Qb8 {[%emt 0:00:13]} 28. Kh2 {[%emt 0:00:28]} Rb1 {[%emt 0:00:39]} 29. Rxf6 {[%emt 0:00:22]} 1-0

[Event "EIRCC 2019"]
[Site "Tallinn"]
[Date "2019.12.06"]
[Round "10.21"]
[White "Lintchevski, Daniil"]
[Black "Mickevicius, Juras"]
[Result "1/2-1/2"]
[ECO "B13"]
[WhiteElo "2538"]
[BlackElo "2270"]
[Annotator "ChessBase"]
[PlyCount "77"]
[EventDate "2019.12.05"]
[EventType "swiss"]
[EventCountry "EST"]
[SourceTitle "playchess.com"]
[Source "ChessBase"]
[SourceQuality "1"]
[TimeControl "900+10"]

1. e4 {[%emt 0:00:00]} c6 {[%emt 0:00:00]} 2. d4 {[%emt 0:00:00]} d5 {[%emt 0:00:00]} 3. exd5 {[%emt 0:00:06]} cxd5 {[%emt 0:00:00]} 4. Bd3 {[%emt 0:00:03]} Nc6 {[%emt 0:00:00]} 5. c3 {[%emt 0:00:02]} Qc7 {[%emt 0:00:00]} 6. Ne2 {[%emt 0:00:05]} Bg4 {[%emt 0:00:32]} 7. O-O {[%emt 0:00:06]} Nf6 {[%emt 0:00:22]} 8. Qe1 {[%emt 0:00:22]} Bh5 {[%emt 0:01:58]} 9. f4 {[%emt 0:00:49]} Bxe2 {[%emt 0:00:33]} 10. Qxe2 {[%emt 0:00:03]} g6 {[%emt 0:00:10]} 11. Nd2 {[%emt 0:00:30]} Bg7 {[%emt 0:00:02]} 12. Nf3 {[%emt 0:00:09]} O-O {[%emt 0:00:03]} 13. Ne5 {[%emt 0:00:56]} e6 {[%emt 0:00:06]} 14. Bd2 {[%emt 0:01:04]} Ne7 {[%emt 0:00:21]} 15. g4 {[%emt 0:00:29]} Nc8 {[%emt 0:00:19]} 16. g5 {[%emt 0:00:17]} Nd7 {[%emt 0:00:06]} 17. h4 {[%emt 0:00:18]} Nd6 {[%emt 0:00:41]} 18. h5 {[%emt 0:00:03]} Nf5 {[%emt 0:00:16]} 19. Rf3 {[%emt 0:00:54]} Rfe8 {[%emt 0:00:42]} 20. Rh3 {[%emt 0:02:17]} Bxe5 {[%emt 0:00:39]} 21. fxe5 {[%emt 0:00:11]} Nf8 {[%emt 0:00:02]} 22. Kg2 {[%emt 0:00:31]} a6 {[%emt 0:00:07]} 23. Rah1 {[%emt 0:00:24]} Re7 {[%emt 0:00:06]} 24. a4 {[%emt 0:00:53]} Rc8 {[%emt 0:00:04]} 25. b3 {[%emt 0:01:25]} Qb6 {[%emt 0:00:19]} 26. Qd1 {[%emt 0:00:55]} Rec7 {[%emt 0:01:18]} 27. Bb1 {[%emt 0:00:07]} Qa7 {[%emt 0:01:06]} 28. Bd3 {[%emt 0:00:52]} Qb6 {[%emt 0:00:44]} 29. Rf1 {[%emt 0:00:18]} Qc6 {[%emt 0:00:10]} 30. Qe2 {[%emt 0:00:19]} Rb8 {[%emt 0:00:59]} 31. Ra1 {[%emt 0:00:19]} Qd7 {[%emt 0:01:43]} 32. Rhh1 {[%emt 0:00:30]} Rbc8 {[%emt 0:00:32]} 33. Rh3 {[%emt 0:00:19]} Rb8 {[%emt 0:00:02]} 34. a5 {[%emt 0:00:26]} Rbc8 {[%emt 0:00:24]} 35. Ra4 {[%emt 0:00:21]} Ng7 {[%emt 0:00:21]} 36. h6 {[%emt 0:00:51]} Nf5 {[%emt 0:00:03]} 37. Rb4 {[%emt 0:00:31]} Qe7 {[%emt 0:00:05]} 38. Qe1 {[%emt 0:00:40]} Nd7 {[%emt 0:00:22]} 39. Kh2 {[%emt 0:00:22]} 1/2-1/2

[Event "EIRCC 2019"]
[Site "Tallinn"]
[Date "2019.12.06"]
[Round "10.22"]
[White "Lobanov, Sergei"]
[Black "Khakimov, Timur"]
[Result "1-0"]
[ECO "C63"]
[WhiteElo "2504"]
[BlackElo "2274"]
[Annotator "ChessBase"]
[PlyCount "123"]
[EventDate "2019.12.05"]
[EventType "swiss"]
[EventCountry "EST"]
[SourceTitle "playchess.com"]
[Source "ChessBase"]
[SourceQuality "1"]
[TimeControl "900+10"]

1. e4 {[%emt 0:00:00]} e5 {[%emt 0:00:08]} 2. Nf3 {[%emt 0:00:00]} Nc6 {[%emt 0:00:01]} 3. Bb5 {[%emt 0:00:00]} f5 {[%emt 0:00:02]} 4. d3 {[%emt 0:01:48]} fxe4 {[%emt 0:00:02]} 5. dxe4 {[%emt 0:00:01]} Nf6 {[%emt 0:00:02]} 6. O-O {[%emt 0:01:53]} Bc5 {[%emt 0:00:19]} 7. Bxc6 {[%emt 0:00:38]} bxc6 {[%emt 0:00:01]} 8. Nxe5 {[%emt 0:00:02]} O-O {[%emt 0:00:54]} 9. Qd3 {[%emt 0:01:38]} Qe7 {[%emt 0:00:10]} 10. Qb3+ {[%emt 0:01:41]} Kh8 {[%emt 0:00:24]} 11. Nd3 {[%emt 0:00:01]} Bb6 {[%emt 0:01:36]} 12. Nc3 {[%emt 0:01:02]} Nxe4 {[%emt 0:00:31]} 13. Nxe4 {[%emt 0:00:11]} Qxe4 {[%emt 0:00:04]} 14. Be3 {[%emt 0:00:35]} Bxe3 {[%emt 0:00:47]} 15. Rae1 {[%emt 0:00:05]} Ba6 {[%emt 0:03:45]} 16. Rxe3 {[%emt 0:00:02]} Qd4 {[%emt 0:00:05]} 17. c3 {[%emt 0:00:08]} Qf6 {[%emt 0:01:00]} 18. Qc2 {[%emt 0:00:12]} Rae8 {[%emt 0:00:08]} 19. Qd2 {[%emt 0:02:35]} Rxe3 {[%emt 0:01:26]} 20. Qxe3 {[%emt 0:00:01]} c5 {[%emt 0:00:22]} 21. Rd1 {[%emt 0:01:04]} d6 {[%emt 0:00:07]} 22. f3 {[%emt 0:00:06]} Bb5 {[%emt 0:00:08]} 23. Re1 {[%emt 0:00:36]} h6 {[%emt 0:00:04]} 24. Qd2 {[%emt 0:00:41]} Qg6 {[%emt 0:00:36]} 25. Re3 {[%emt 0:01:27]} Bc6 {[%emt 0:00:11]} 26. Qe2 {[%emt 0:00:07]} Qg5 {[%emt 0:00:22]} 27. Nf2 {[%emt 0:01:08]} Bd5 {[%emt 0:01:15]} 28. b3 {[%emt 0:00:43]} a5 {[%emt 0:00:36]} 29. c4 {[%emt 0:00:04]} Bc6 {[%emt 0:00:06]} 30. Ne4 {[%emt 0:00:35]} Qe5 {[%emt 0:00:30]} 31. Nc3 {[%emt 0:00:03]} Qd4 {[%emt 0:00:13]} 32. Kf1 {[%emt 0:00:01]} a4 {[%emt 0:00:34]} 33. Nxa4 {[%emt 0:00:30]} d5 {[%emt 0:01:15]} 34. Rd3 {[%emt 0:00:30]} Qh4 {[%emt 0:00:03]} 35. Qf2 {[%emt 0:00:23]} Qxf2+ {[%emt 0:01:29]} 36. Kxf2 {[%emt 0:00:02]} dxc4 {[%emt 0:00:02]} 37. Rc3 {[%emt 0:00:00]} cxb3 {[%emt 0:00:02]} 38. axb3 {[%emt 0:00:03]} Bxa4 {[%emt 0:00:54]} 39. bxa4 {[%emt 0:00:01]} Ra8 {[%emt 0:00:01]} 40. Rc4 {[%emt 0:00:11]} Ra5 {[%emt 0:00:04]} 41. Ke3 {[%emt 0:00:02]} Kg8 {[%emt 0:00:01]} 42. Ke4 {[%emt 0:00:01]} Kf7 {[%emt 0:00:10]} 43. Kd5 {[%emt 0:00:02]} Ke7 {[%emt 0:00:02]} 44. Kc6 {[%emt 0:00:28]} Kd8 {[%emt 0:00:01]} 45. Rg4 {[%emt 0:00:13]} g5 {[%emt 0:00:02]} 46. h4 {[%emt 0:00:01]} Ra6+ {[%emt 0:00:25]} 47. Kxc5 {[%emt 0:00:34]} Ra5+ {[%emt 0:00:00]} 48. Kc6 {[%emt 0:00:18]} gxh4 {[%emt 0:00:13]} 49. Rxh4 {[%emt 0:00:14]} h5 {[%emt 0:00:01]} 50. Rf4 {[%emt 0:00:16]} Ra6+ {[%emt 0:00:44]} 51. Kb5 {[%emt 0:00:11]} Rb6+ {[%emt 0:00:01]} 52. Kc5 {[%emt 0:00:02]} Rg6 {[%emt 0:00:02]} 53. g4 {[%emt 0:00:05]} hxg4 {[%emt 0:00:01]} 54. fxg4 {[%emt 0:00:01]} Rg5+ {[%emt 0:00:06]} 55. Kc6 {[%emt 0:00:04]} Rg6+ {[%emt 0:00:00]} 56. Kb5 {[%emt 0:00:11]} Kc8 {[%emt 0:00:05]} 57. Rb4 {[%emt 0:00:20]} Kb7 {[%emt 0:00:15]} 58. Kc5+ {[%emt 0:00:08]} Ka6 {[%emt 0:00:01]} 59. Kd5 {[%emt 0:00:08]} Ka5 {[%emt 0:00:01]} 60. Rc4 {[%emt 0:00:01]} c6+ {[%emt 0:00:12]} 61. Ke5 {[%emt 0:00:03]} c5 {[%emt 0:00:08]} 62. Kf5 {[%emt 0:00:18]} 1-0